lending/lending_fUSD_20250819
["ID","MTS","AMOUNT","RATE_DAILY","PERIOD"]
[380275310,1755631049849,-494.07,0.00023821,30]
[380275311,1755631049874,-771.8,0.00023821,30]
[380275312,1755631049899,-400.0,0.00023821,30]
[380275313,1755631049925,-1485.66,0.00023821,30]
[380275314,1755631049951,-400.0,0.00023821,30]
[380275315,1755631049977,-514.22,0.00023821,30]
[380275316,1755631050003,-1688.58,0.00023821,30]
[380275317,1755631050028,-400.0,0.00023821,30]
[380275318,1755631050054,-365.44,0.00023821,30]
[380275319,1755631050080,-2731.01,0.00023821,30]
[380275320,1755631050107,-716.5,0.00023821,30]
[380275321,1755631050132,-408.32,0.00023821,30]
[380275322,1755631050157,-400.0,0.00023821,30]
[380275323,1755631050182,-1382.11,0.00023821,30]
[380275324,1755631050209,-2951.24,0.00023821,30]
[380275325,1755631050236,-6757.75,0.00023821,30]
[380275326,1755631050262,-812.97,0.00023821,30]
[380275327,1755631050288,-316.61,0.00023821,30]
[380275328,1755631050318,-1007.53,0.00023821,30]
[380275329,1755631050345,-1417.55,0.00023821,30]
[380275330,1755631050374,-400.0,0.00023821,30]
[380275331,1755631050400,-2420.72,0.00023821,30]
[380275332,1755631050426,-447.89,0.00023821,30]
[380275333,1755631050452,-400.0,0.00023821,30]
[380275334,1755631050477,-400.0,0.00023821,30]
[380275335,1755631050503,-632.73,0.00023821,30]
[380275336,1755631050529,-553.64,0.00023821,30]
[380275337,1755631050555,-744.53,0.00023821,30]
[380275338,1755631050580,-1672.31,0.00023821,30]
[380275339,1755631050606,-1648.48,0.00023821,30]
[380275340,1755631050632,-8716.72,0.00023821,30]
[380275341,1755631050658,-1174.9,0.00023821,30]
[380275342,1755631050683,-1247.73,0.00023821,30]
[380275343,1755631050708,-400.0,0.00023821,30]
[380275344,1755631050733,-2800.23,0.00023821,30]
[380275345,1755631050759,-400.0,0.00023821,30]
[380275346,1755631050785,-1855.67,0.00023821,30]
[380275347,1755631050809,-2735.6,0.00023821,30]
[380275348,1755631050836,-1549.4,0.00023821,30]
[380275349,1755631050860,-549.35,0.00023821,30]
[380275350,1755631050884,-1600.8,0.00023821,30]
[380275351,1755631050909,-1083.07,0.00023821,30]
[380275352,1755631050934,-2521.93,0.00023821,30]
[380275353,1755631050963,-407.03,0.00023821,30]
[380275354,1755631050988,-1663.82,0.00023821,30]
[380275355,1755631051015,-1863.39,0.00023821,30]
[380275356,1755631051042,-867.04,0.00023821,30]
[380275357,1755631051069,-2006.03,0.00023821,30]
[380275358,1755631051099,-1558.27,0.00023821,30]
[380275359,1755631051126,-1625.91,0.00023821,30]
[380275360,1755631051158,-3914.85,0.00023821,30]
[380275361,1755631051184,-801.03,0.00023821,30]
[380275362,1755631051209,-400.0,0.00023821,30]
[380275363,1755631051234,-1784.81,0.00023821,30]
[380275364,1755631051260,-400.0,0.00023821,30]
[380275365,1755631051287,-1785.17,0.00023821,30]
[380275366,1755631051314,-2242.56,0.00023821,30]
[380275367,1755631051339,-1700.25,0.00023821,30]
[380275368,1755631051364,-834.13,0.00023821,30]
[380275369,1755631051389,-1018.63,0.00023821,30]
[380275370,1755631051648,-484.61,0.00023821,30]
[380275371,1755631051674,-400.0,0.00023821,30]
[380275372,1755631051700,-199.90188857,0.00023821,30]
[380275373,1755631051725,-801.25,0.00023821,30]
[380275374,1755631051752,-1460.04,0.00023821,30]
[380275375,1755631051778,-4032.43,0.00023821,30]
[380275376,1755631051804,-2527.74,0.00023821,30]
[380275377,1755631051829,-400.0,0.00023821,30]
[380275378,1755631051854,-4275.48,0.00023821,30]
[380275379,1755631051879,-400.0,0.00023821,30]
[380275380,1755631051904,-1812.27,0.00023821,30]
[380275381,1755631051931,-400.0,0.00023821,30]
[380275382,1755631051957,-400.0,0.00023821,30]
[380275383,1755631051985,-434.72,0.00023821,30]
[380275384,1755631052011,-7013.86,0.00023821,30]
[380275385,1755631052036,-1435.4,0.00023821,30]
[380275386,1755631052063,-1807.74,0.00023821,30]
[380275387,1755631052089,-1890.92,0.00023821,30]
[380275388,1755631052115,-4142.44,0.00023821,30]
[380275389,1755631052139,-400.0,0.00023821,30]
[380275390,1755631052164,-323.01,0.00023821,30]
[380275391,1755631052190,-400.0,0.00023821,30]
[380275392,1755631052216,-1487.81,0.00023821,30]
[380275393,1755631052240,-1775.43,0.00023821,30]
[380275394,1755631052267,-9303.97,0.00023821,30]
[380275395,1755631052292,-824.79,0.00023821,30]
[380275396,1755631052319,-2003.15,0.00023821,30]
[380275397,1755631052345,-400.0,0.00023821,30]
[380275398,1755631052370,-1357.73,0.00023821,30]
[380275399,1755631052395,-3458.05,0.00023821,30]
[380275400,1755631052420,-400.0,0.00023821,30]
[380275401,1755631052445,-400.0,0.00023821,30]
[380275402,1755631052470,-1146.31,0.00023821,30]
[380275403,1755631052496,-400.0,0.00023821,30]
[380275404,1755631052521,-1420.57,0.00023821,30]
[380275405,1755631052547,-2399.65,0.00023821,30]
[380275406,1755631052572,-5837.98,0.00023821,30]
[380275407,1755631052598,-8152.85,0.00023821,30]
[380275408,1755631052623,-400.0,0.00023821,30]
[380275409,1755631052650,-8014.73,0.00023821,30]
[380275410,1755631052676,-3351.12,0.00023821,30]
[380275411,1755631052700,-713.75,0.00023821,30]
[380275412,1755631052725,-444.69,0.00023821,30]
[380275413,1755631052754,-400.0,0.00023821,30]
[380275414,1755631052780,-400.0,0.00023821,30]
[380275415,1755631052806,-630.29,0.00023821,30]
[380275416,1755631052831,-840.72,0.00023821,30]
[380275417,1755631052857,-5044.7,0.00023821,30]
[380275418,1755631052881,-3116.05,0.00023821,30]
[380275419,1755631052906,-2077.84,0.00023821,30]
[380275420,1755631052934,-400.0,0.00023821,30]
[380275421,1755631052959,-755.9,0.00023821,30]
[380275422,1755631052985,-400.0,0.00023821,30]
[380275423,1755631053011,-3767.8,0.00023821,30]
[380275424,1755631053038,-400.0,0.00023821,30]
[380275425,1755631053065,-981.8,0.00023821,30]
[380275426,1755631053092,-458.85,0.00023821,30]
[380275427,1755631053119,-1623.73,0.00023821,30]
[380275428,1755631053146,-1621.47,0.00023821,30]
[380275429,1755631053173,-665.7,0.00023821,30]
[380275430,1755631053200,-7442.7,0.00023821,30]
[380275431,1755631053226,-1470.22,0.00023821,30]
[380275432,1755631053254,-3397.55,0.00023821,30]
[380275433,1755631053280,-400.0,0.00023821,30]
[380275434,1755631053308,-400.0,0.00023821,30]
[380275435,1755631053337,-581.67,0.00023821,30]
[380275436,1755631053364,-2718.91,0.00023821,30]
[380275437,1755631053391,-1256.26,0.00023821,30]
[380275438,1755631053418,-2098.94,0.00023821,30]
[380275439,1755631053445,-1449.63,0.00023821,30]
[380275440,1755631053474,-400.0,0.00024095,30]
[380275441,1755631053506,-316.61,0.00024095,30]
[380275442,1755631053533,-400.0,0.00024095,30]
[380275443,1755631053561,-400.0,0.00024095,30]
[380275444,1755631053590,-400.0,0.00024095,30]
[380275445,1755631053617,-400.0,0.00024095,30]
[380275446,1755631053646,-591.41,0.00024095,30]
[380275447,1755631053672,-400.0,0.00024095,30]
[380275448,1755631053699,-1211.51,0.00024095,30]
[380275449,1755631053729,-657.43,0.00024095,30]
[380275450,1755631053760,-1321.19,0.00024095,30]
[380275451,1755631053790,-2333.41,0.00024095,30]
[380275452,1755631053821,-400.0,0.00024095,30]
[380275453,1755631053851,-3141.86,0.00024095,30]
[380275454,1755631053879,-400.0,0.00024095,30]
[380275455,1755631053906,-441.64,0.00024095,30]
[380275456,1755631053935,-895.33,0.00024095,30]
[380275457,1755631053962,-1312.21,0.00024095,30]
[380275458,1755631053989,-610.43,0.00024095,30]
[380275459,1755631054018,-5048.43,0.00024095,30]
[380275460,1755631054045,-912.37,0.00024095,30]
[380275461,1755631054076,-2638.42,0.00024095,30]
[380275462,1755631054106,-2777.22,0.00024095,30]
[380275463,1755631054136,-542.11,0.00024095,30]
[380275464,1755631054440,-400.0,0.00024095,30]
[380275465,1755631054468,-854.75,0.00024095,30]
[380275466,1755631054496,-156.04,0.00024095,30]
[380275467,1755631054523,-582.29,0.00024095,30]
[380275468,1755631054549,-2058.34,0.00024095,30]
[380275469,1755631054590,-807.81,0.00024095,30]
[380275470,1755631054619,-2108.39,0.00024095,30]
[380275471,1755631054649,-400.0,0.00024095,30]
[380275472,1755631054678,-3236.93,0.00024095,30]
[380275473,1755631054706,-2755.38,0.00024095,30]
[380275474,1755631054734,-494.07,0.00024095,30]
[380275475,1755631054764,-771.8,0.00024095,30]
[380275476,1755631054793,-1485.66,0.00024095,30]
[380275477,1755631054821,-400.0,0.00024095,30]
[380275478,1755631054851,-400.0,0.00024095,30]
[380275479,1755631054880,-514.22,0.00024095,30]
[380275480,1755631054909,-1688.58,0.00024095,30]
[380275481,1755631054936,-400.0,0.00024095,30]
[380275482,1755631054963,-2731.01,0.00024095,30]
[380275483,1755631054991,-716.5,0.00024095,30]
[380275484,1755631055019,-408.32,0.00024095,30]
[380275485,1755631055047,-400.0,0.00024095,30]
[380275486,1755631055077,-1382.11,0.00024095,30]
[380275487,1755631055111,-2951.24,0.00024095,30]
[380275488,1755631055142,-6757.75,0.00024095,30]
[380275489,1755631055174,-812.97,0.00024095,30]
[380275490,1755631055205,-1007.53,0.00024095,30]
[380275491,1755631055236,-1417.55,0.00024095,30]
[380275492,1755631055266,-400.0,0.00024095,30]
[380275493,1755631055297,-2420.72,0.00024095,30]
[380275494,1755631055328,-447.89,0.00024095,30]
[380275495,1755631055359,-400.0,0.00024095,30]
[380275496,1755631055388,-400.0,0.00024095,30]
[380275497,1755631055417,-632.73,0.00024095,30]
[380275498,1755631055445,-553.64,0.00024095,30]
[380275499,1755631055474,-744.53,0.00024095,30]
[380275500,1755631055502,-1672.31,0.00024095,30]
[380275501,1755631055529,-1648.48,0.00024095,30]
[380275502,1755631055558,-8716.72,0.00024095,30]
[380275503,1755631055587,-1174.9,0.00024095,30]
[380275504,1755631055615,-1247.73,0.00024095,30]
[380275505,1755631055642,-400.0,0.00024095,30]
[380275506,1755631055676,-2800.23,0.00024095,30]
[380275507,1755631055704,-400.0,0.00024095,30]
[380275508,1755631055733,-1855.67,0.00024095,30]
[380275509,1755631055765,-1549.4,0.00024095,30]
[380275510,1755631055794,-2735.6,0.00024095,30]
[380275511,1755631055829,-549.35,0.00024095,30]
[380275512,1755631055860,-1600.8,0.00024095,30]
[380275513,1755631055887,-1083.07,0.00024095,30]
[380275514,1755631055914,-2521.93,0.00024095,30]
[380275515,1755631055941,-407.03,0.00024095,30]
[380275516,1755631055969,-1663.82,0.00024095,30]
[380275517,1755631055997,-1863.39,0.00024095,30]
[380275518,1755631056024,-867.04,0.00024095,30]
[380275519,1755631056053,-2006.03,0.00024095,30]
[380275520,1755631056083,-1558.27,0.00024095,30]
[380275521,1755631056111,-1625.91,0.00024095,30]
[380275522,1755631056138,-3914.85,0.00024095,30]
[380275523,1755631056165,-801.03,0.00024095,30]
[380275524,1755631056193,-400.0,0.00024095,30]
[380275525,1755631056225,-1784.81,0.00024095,30]
[380275526,1755631056252,-400.0,0.00024095,30]
[380275527,1755631056280,-1785.17,0.00024095,30]
[380275528,1755631056308,-2242.56,0.00024095,30]
[380275529,1755631056341,-1700.25,0.00024095,30]
[380275530,1755631056371,-834.13,0.00024095,30]
[380275531,1755631056398,-1018.63,0.00024095,30]
[380275532,1755631056425,-484.61,0.00024095,30]
[380275533,1755631056452,-400.0,0.00024095,30]
[380275534,1755631056479,-1460.04,0.00024095,30]
[380275535,1755631056505,-801.25,0.00024095,30]
[380275536,1755631056531,-4032.43,0.00024095,30]
[380275537,1755631056560,-2527.74,0.00024095,30]
[380275538,1755631056589,-4275.48,0.00024095,30]
[380275539,1755631056616,-230.85,0.00024095,30]
[380275540,1755631056643,-400.0,0.00024095,30]
[380275541,1755631056670,-1812.27,0.00024095,30]
[380275542,1755631056698,-400.0,0.00024095,30]
[380275543,1755631056725,-400.0,0.00024095,30]
[380275544,1755631056754,-434.72,0.00024095,30]
[380275545,1755631056782,-7013.86,0.00024095,30]
[380275546,1755631056809,-1435.4,0.00024095,30]
[380275547,1755631056840,-1807.74,0.00024095,30]
[380275548,1755631056867,-1890.92,0.00024095,30]
[380275549,1755631056894,-4142.44,0.00024095,30]
[380275550,1755631056923,-400.0,0.00024095,30]
[380275551,1755631056950,-400.0,0.00024095,30]
[380275552,1755631056976,-1487.81,0.00024095,30]
[380275553,1755631057004,-1775.43,0.00024095,30]
[380275554,1755631057030,-9303.97,0.00024095,30]
[380275555,1755631057058,-824.79,0.00024095,30]
[380275556,1755631057087,-2003.15,0.00024095,30]
[380275557,1755631057115,-400.0,0.00024095,30]
[380275558,1755631057566,-1357.73,0.00024095,30]
[380275559,1755631057598,-3458.05,0.00024095,30]
[380275560,1755631057625,-400.0,0.00024095,30]
[380275561,1755631057657,-400.0,0.00024095,30]
[380275562,1755631057685,-1146.31,0.00024095,30]
[380275563,1755631057713,-400.0,0.00024095,30]
[380275564,1755631057743,-1420.57,0.00024095,30]
[380275565,1755631057773,-2399.65,0.00024095,30]
[380275566,1755631057803,-5837.98,0.00024095,30]
[380275567,1755631057832,-8152.85,0.00024095,30]
[380275568,1755631057859,-400.0,0.00024095,30]
[380275569,1755631057888,-8014.73,0.00024095,30]
[380275570,1755631057920,-3351.12,0.00024095,30]
[380275571,1755631057953,-713.75,0.00024095,30]
[380275572,1755631057984,-444.69,0.00024095,30]
[380275573,1755631058010,-400.0,0.00024095,30]
[380275574,1755631058040,-400.0,0.00024095,30]
[380275575,1755631058071,-840.72,0.00024095,30]
[380275576,1755631058100,-5044.7,0.00024095,30]
[380275577,1755631058128,-3116.05,0.00024095,30]
[380275578,1755631058156,-2077.84,0.00024095,30]
[380275579,1755631058184,-400.0,0.00024095,30]
[380275580,1755631058217,-755.9,0.00024095,30]
[380275581,1755631058246,-3767.8,0.00024095,30]
[380275582,1755631058275,-400.0,0.00024095,30]
[380275583,1755631058303,-546.98052956,0.00024095,30]
[380275584,1755631058334,-981.8,0.00024095,30]
[380275585,1755631058362,-630.29,0.00024095,30]
[380275586,1755631058391,-458.85,0.00024095,30]
[380275587,1755631058419,-1623.73,0.00024095,30]
[380275588,1755631058446,-1621.47,0.00024095,30]
[380275589,1755631058474,-665.7,0.00024095,30]
[380275590,1755631058504,-7442.7,0.00024095,30]
[380275591,1755631058532,-1470.22,0.00024095,30]
[380275592,1755631058558,-3397.55,0.00024095,30]
[380275593,1755631058586,-400.0,0.00024095,30]
[380275594,1755631058615,-400.0,0.00024095,30]
[380275595,1755631058642,-581.67,0.00024095,30]
[380275596,1755631058669,-2718.91,0.00024095,30]
[380275597,1755631058697,-1256.26,0.00024095,30]
[380275598,1755631058727,-2098.94,0.00024095,30]
[380275599,1755631058762,-400.0,0.00024369,30]
[380275600,1755631058792,-400.0,0.00024369,30]
[380275601,1755631058825,-400.0,0.00024369,30]
[380275602,1755631058857,-400.0,0.00024369,30]
[380275603,1755631058886,-400.0,0.00024369,30]
[380275604,1755631058916,-591.41,0.00024369,30]
[380275605,1755631058946,-400.0,0.00024369,30]
[380275606,1755631058976,-1211.51,0.00024369,30]
[380275607,1755631059004,-657.43,0.00024369,30]
[380275608,1755631059035,-1321.19,0.00024369,30]
[380275609,1755631059063,-2333.41,0.00024369,30]
[380275610,1755631059094,-400.0,0.00024369,30]
[380275611,1755631059123,-3141.86,0.00024369,30]
[380275612,1755631059152,-400.0,0.00024369,30]
[380275613,1755631059179,-441.64,0.00024369,30]
[380275614,1755631059207,-895.33,0.00024369,30]
[380275615,1755631059238,-1312.21,0.00024369,30]
[380275616,1755631059269,-610.43,0.00024369,30]
[380275617,1755631059299,-5048.43,0.00024369,30]
[380275618,1755631059329,-912.37,0.00024369,30]
[380275619,1755631059359,-2777.22,0.00024369,30]
[380275620,1755631059387,-2638.42,0.00024369,30]
[380275621,1755631059415,-542.11,0.00024369,30]
[380275622,1755631059442,-400.0,0.00024369,30]
[380275623,1755631059469,-854.75,0.00024369,30]
[380275624,1755631059496,-582.29,0.00024369,30]
[380275625,1755631059522,-2058.34,0.00024369,30]
[380275626,1755631059548,-807.81,0.00024369,30]
[380275627,1755631059576,-2108.39,0.00024369,30]
[380275628,1755631059603,-400.0,0.00024369,30]
[380275629,1755631059630,-3236.93,0.00024369,30]
[380275630,1755631059656,-2755.38,0.00024369,30]
[380275631,1755631059682,-494.07,0.00024369,30]
[380275632,1755631059708,-771.8,0.00024369,30]
[380275633,1755631059735,-400.0,0.00024369,30]
[380275634,1755631059762,-400.0,0.00024369,30]
[380275635,1755631059790,-1485.66,0.00024369,30]
[380275636,1755631059815,-514.22,0.00024369,30]
[380275637,1755631059845,-1688.58,0.00024369,30]
[380275638,1755631059870,-400.0,0.00024369,30]
[380275639,1755631059895,-2731.01,0.00024369,30]
[380275640,1755631059921,-716.5,0.00024369,30]
[380275641,1755631059948,-408.32,0.00024369,30]
[380275642,1755631059975,-400.0,0.00024369,30]
[380275643,1755631060001,-1382.11,0.00024369,30]
[380275644,1755631060029,-2951.24,0.00024369,30]
[380275645,1755631060055,-6757.75,0.00024369,30]
[380275646,1755631060084,-812.97,0.00024369,30]
[380275647,1755631060111,-1007.53,0.00024369,30]
[380275648,1755631060142,-1417.55,0.00024369,30]
[380275649,1755631060171,-400.0,0.00024369,30]
[380275650,1755631060199,-2420.72,0.00024369,30]
[380275651,1755631060227,-447.89,0.00024369,30]
[380275652,1755631060255,-257.2,0.00024369,30]
[380275653,1755631060602,-400.0,0.00024369,30]
[380275654,1755631060628,-632.73,0.00024369,30]
[380275655,1755631060654,-553.64,0.00024369,30]
[380275656,1755631060680,-744.53,0.00024369,30]
[380275657,1755631060705,-1672.31,0.00024369,30]
[380275658,1755631060731,-1648.48,0.00024369,30]
[380275659,1755631060760,-8716.72,0.00024369,30]
[380275660,1755631060786,-1174.9,0.00024369,30]
[380275661,1755631060812,-1247.73,0.00024369,30]
[380275662,1755631060839,-400.0,0.00024369,30]
[380275663,1755631060865,-2800.23,0.00024369,30]
[380275664,1755631060895,-400.0,0.00024369,30]
[380275665,1755631060921,-1855.67,0.00024369,30]
[380275666,1755631060948,-1549.4,0.00024369,30]
[380275667,1755631060974,-2735.6,0.00024369,30]
[380275668,1755631060999,-549.35,0.00024369,30]
[380275669,1755631061025,-1600.8,0.00024369,30]
[380275670,1755631061051,-1083.07,0.00024369,30]
[380275671,1755631061077,-2521.93,0.00024369,30]
[380275672,1755631061104,-407.03,0.00024369,30]
[380275673,1755631061131,-1663.82,0.00024369,30]
[380275674,1755631061157,-1863.39,0.00024369,30]
[380275675,1755631061185,-2006.03,0.00024369,30]
[380275676,1755631061211,-867.04,0.00024369,30]
[380275677,1755631061239,-1558.27,0.00024369,30]
[380275678,1755631061265,-1625.91,0.00024369,30]
[380275679,1755631061292,-3914.85,0.00024369,30]
[380275680,1755631061320,-801.03,0.00024369,30]
[380275681,1755631061347,-400.0,0.00024369,30]
[380275682,1755631061373,-1784.81,0.00024369,30]
[380275683,1755631061400,-400.0,0.00024369,30]
[380275684,1755631061425,-1785.17,0.00024369,30]
[380275685,1755631061452,-2242.56,0.00024369,30]
[380275686,1755631061481,-1700.25,0.00024369,30]
[380275687,1755631061512,-834.13,0.00024369,30]
[380275688,1755631061541,-1018.63,0.00024369,30]
[380275689,1755631061568,-484.61,0.00024369,30]
[380275690,1755631061596,-400.0,0.00024369,30]
[380275691,1755631061625,-1460.04,0.00024369,30]
[380275692,1755631061652,-801.25,0.00024369,30]
[380275693,1755631061679,-4032.43,0.00024369,30]
[380275694,1755631061707,-2527.74,0.00024369,30]
[380275695,1755631061732,-4275.48,0.00024369,30]
[380275696,1755631061760,-400.0,0.00024369,30]
[380275697,1755631061787,-1812.27,0.00024369,30]
[380275698,1755631061812,-400.0,0.00024369,30]
[380275699,1755631061839,-400.0,0.00024369,30]
[380275700,1755631061866,-434.72,0.00024369,30]
[380275701,1755631061892,-7013.86,0.00024369,30]
[380275702,1755631061919,-1435.4,0.00024369,30]
[380275703,1755631061945,-1807.74,0.00024369,30]
[380275704,1755631061974,-1890.92,0.00024369,30]
[380275705,1755631062002,-4142.44,0.00024369,30]
[380275706,1755631062028,-400.0,0.00024369,30]
[380275707,1755631062054,-400.0,0.00024369,30]
[380275708,1755631062080,-1487.81,0.00024369,30]
[380275709,1755631062107,-1775.43,0.00024369,30]
[380275710,1755631062132,-9303.97,0.00024369,30]
[380275711,1755631062158,-824.79,0.00024369,30]
[380275712,1755631062184,-2003.15,0.00024369,30]
[380275713,1755631062211,-400.0,0.00024369,30]
[380275714,1755631062237,-1357.73,0.00024369,30]
[380275715,1755631062262,-3458.05,0.00024369,30]
[380275716,1755631062287,-400.0,0.00024369,30]
[380275717,1755631062317,-400.0,0.00024369,30]
[380275718,1755631062344,-1146.31,0.00024369,30]
[380275719,1755631062370,-400.0,0.00024369,30]
[380275720,1755631062396,-1420.57,0.00024369,30]
[380275721,1755631062421,-2399.65,0.00024369,30]
[380275722,1755631062446,-5837.98,0.00024369,30]
[380275723,1755631062472,-400.0,0.00024369,30]
[380275724,1755631062498,-8152.85,0.00024369,30]
[380275725,1755631062527,-8014.73,0.00024369,30]
[380275726,1755631062552,-3351.12,0.00024369,30]
[380275727,1755631062577,-444.69,0.00024369,30]
[380275728,1755631062602,-713.75,0.00024369,30]
[380275729,1755631062628,-194.04,0.00024369,30]
[380275730,1755631062653,-400.0,0.00024369,30]
[380275731,1755631062678,-840.72,0.00024369,30]
[380275732,1755631062703,-5044.7,0.00024369,30]
[380275733,1755631062728,-3116.05,0.00024369,30]
[380275734,1755631062755,-2077.84,0.00024369,30]
[380275735,1755631062780,-400.0,0.00024369,30]
[380275736,1755631062807,-755.9,0.00024369,30]
[380275737,1755631062837,-3767.8,0.00024369,30]
[380275738,1755631062864,-400.0,0.00024369,30]
[380275739,1755631062888,-981.8,0.00024369,30]
[380275740,1755631062913,-630.29,0.00024369,30]
[380275741,1755631062938,-458.85,0.00024369,30]
[380275742,1755631062962,-1623.73,0.00024369,30]
[380275743,1755631062987,-1621.47,0.00024369,30]
[380275744,1755631063011,-665.7,0.00024369,30]
[380275745,1755631063037,-7442.7,0.00024369,30]
[380275746,1755631063064,-1470.22,0.00024369,30]
[380275747,1755631063332,-400.0,0.00024369,30]
[380275748,1755631063365,-3397.55,0.00024369,30]
[380275749,1755631063395,-400.0,0.00024369,30]
[380275750,1755631063422,-581.67,0.00024369,30]
[380275751,1755631063449,-1256.26,0.00024369,30]
[380275752,1755631063475,-2718.91,0.00024369,30]
[380275753,1755631063502,-400.0,0.00024643,30]
[380275754,1755631063529,-400.0,0.00024643,30]
[380275755,1755631063554,-400.0,0.00024643,30]
[380275756,1755631063580,-400.0,0.00024643,30]
[380275757,1755631063605,-400.0,0.00024643,30]
[380275758,1755631063632,-591.41,0.00024643,30]
[380275759,1755631063658,-400.0,0.00024643,30]
[380275760,1755631063684,-1211.51,0.00024643,30]
[380275761,1755631063710,-657.43,0.00024643,30]
[380275762,1755631063738,-1321.19,0.00024643,30]
[380275763,1755631063769,-2333.41,0.00024643,30]
[380275764,1755631063796,-234.78,0.00024643,30]
[380275765,1755631063823,-3141.86,0.00024643,30]
[380275766,1755631063852,-167.15,0.00024643,30]
[380275767,1755631063877,-441.64,0.00024643,30]
[380275768,1755631063903,-895.33,0.00024643,30]
[380275769,1755631063930,-1312.21,0.00024643,30]
[380275770,1755631063957,-610.43,0.00024643,30]
[380275771,1755631063984,-5048.43,0.00024643,30]
[380275772,1755631064010,-912.37,0.00024643,30]
[380275773,1755631064037,-2777.22,0.00024643,30]
[380275774,1755631064064,-2638.42,0.00024643,30]
[380275775,1755631064092,-542.11,0.00024643,30]
[380275776,1755631064120,-400.0,0.00024643,30]
[380275777,1755631064148,-854.75,0.00024643,30]
[380275778,1755631064175,-582.29,0.00024643,30]
[380275779,1755631064203,-2058.34,0.00024643,30]
[380275780,1755631064231,-807.81,0.00024643,30]
[380275781,1755631064260,-2108.39,0.00024643,30]
[380275782,1755631064290,-400.0,0.00024643,30]
[380275783,1755631064321,-3236.93,0.00024643,30]
[380275784,1755631064349,-2755.38,0.00024643,30]
[380275785,1755631064378,-494.07,0.00024643,30]
[380275786,1755631064407,-771.8,0.00024643,30]
[380275787,1755631064433,-400.0,0.00024643,30]
[380275788,1755631064461,-213.31,0.00024643,30]
[380275789,1755631064487,-1485.66,0.00024643,30]
[380275790,1755631064512,-514.22,0.00024643,30]
[380275791,1755631064539,-1688.58,0.00024643,30]
[380275792,1755631064565,-400.0,0.00024643,30]
[380275793,1755631064592,-2731.01,0.00024643,30]
[380275794,1755631064617,-716.5,0.00024643,30]
[380275795,1755631064643,-408.32,0.00024643,30]
[380275796,1755631064671,-400.0,0.00024643,30]
[380275797,1755631064696,-1382.11,0.00024643,30]
[380275798,1755631064723,-2951.24,0.00024643,30]
[380275799,1755631064751,-6757.75,0.00024643,30]
[380275800,1755631064787,-812.97,0.00024643,30]
[380275801,1755631064827,-1007.53,0.00024643,30]
[380275802,1755631064857,-1417.55,0.00024643,30]
[380275803,1755631064885,-400.0,0.00024643,30]
[380275804,1755631064911,-2420.72,0.00024643,30]
[380275805,1755631064938,-447.89,0.00024643,30]
[380275806,1755631064965,-400.0,0.00024643,30]
[380275807,1755631064991,-632.73,0.00024643,30]
[380275808,1755631065018,-553.64,0.00024643,30]
[380275809,1755631065046,-744.53,0.00024643,30]